[Event "Niedersachsen-ch A 2024"]
[Site "Verden Aller"]
[Date "2024.01.04"]
[Round "1.21"]
[White "Koch, Yannick"]
[Black "ter Stal, Lars"]
[Result "1-0"]
[ECO "E35"]
[WhiteElo "1981"]
[BlackElo "1770"]
[Annotator "RC"]
[PlyCount "108"]
[EventDate "2024.01.01"]
[EventType "swiss"]
[EventCountry "GER"]
[SourceTitle "playchess.com"]
[Source "ChessBase"]
[SourceQuality "1"]
[TimeControl "40/5400+30:1800+30"]

1. d4 {[%emt 0:00:08]} Nf6 {[%emt 0:00:08]} 2. c4 {[%emt 0:00:21]} e6 {[%emt 0:00:07]} 3. Nc3 {[%emt 0:00:38]} Bb4 {[%emt 0:00:23]} 4. Qc2 {[%emt 0:00:52]} d5 {[%emt 0:03:06]} 5. cxd5 {[%emt 0:00:50]} exd5 {[%emt 0:00:21]} 6. Bg5 {[%emt 0:00:42]} O-O {[%emt 0:02:06]} 7. e3 {[%emt 0:01:55]} Re8 {[%emt 0:12:43]} 8. Bd3 {[%emt 0:01:47]} h6 {[%emt 0:00:21]} 9. Bh4 {[%emt 0:00:32]} c5 {[%emt 0:05:45]} 10. Nge2 {[%emt 0:06:24]} Nc6 {[%emt 0:06:17]} 11. O-O {[%emt 0:06:13]} Be6 {[%emt 0:11:41]} 12. dxc5 {[%emt 0:03:34]} Bxc5 {[%emt 0:19:13]} 13. Nb5 {[%emt 0:04:08]} Be7 {[%emt 0:02:07]} 14. Qa4 {[%emt 0:08:54]} Ne5 {[%emt 0:05:37]} 15. Rfd1 {[%emt 0:04:33]} a6 {[%emt 0:05:41]} 16. Nbd4 {[%emt 0:00:26]} b5 {[%emt 0:01:16]} 17. Qb3 {[%emt 0:00:53]} Nfd7 {[%emt 0:02:11]} 18. Bxe7 {[%emt 0:00:53]} Qxe7 {[%emt 0:00:18]} 19. Bc2 {[%emt 0:08:44]} Qh4 {[%emt 0:03:12]} 20. Ng3 {[%emt 0:02:56]} Ng4 {[%emt 0:03:18]} 21. Nf3 {[%emt 0:00:41]} Qf6 {[%emt 0:00:07]} 22. Nh5 {[%emt 0:02:09]} Qe7 {[%emt 0:00:39]} 23. Rac1 {[%emt 0:05:01]} d4 {[%emt 0:02:06]} 24. Qd3 {[%emt 0:01:26]} g6 {[%emt 0:00:19]} 25. h3 {[%emt 0:09:54]} Nge5 {[%emt 0:01:11]} 26. Nxe5 {[%emt 0:00:54]} Nxe5 {[%emt 0:00:06]} 27. Qxd4 {[%emt 0:02:17]} Bxh3 {[%emt 0:03:11]} 28. Qf4 {[%emt 0:06:53]} gxh5 {[%emt 0:03:23]} 29. Qxh6 {[%emt 0:07:00]} Qe6 {[%emt 0:00:08]} 30. Bh7+ {[%emt 0:03:25]} Kh8 {[%emt 0:00:05]} 31. Bg6+ {[%emt 0:00:19]} Kg8 {[%emt 0:00:08]} 32. Qh7+ {[%emt 0:00:28]} Kf8 {[%emt 0:00:07]} 33. Qh8+ {[%emt 0:00:58]} Ke7 {[%emt 0:00:07]} 34. Rc7+ {[%emt 0:00:12]} Nd7 {[%emt 0:00:25]} 35. Rcxd7+ {[%emt 0:01:32]} Qxd7 {[%emt 0:00:06]} 36. Rxd7+ {[%emt 0:00:08]} Bxd7 {[%emt 0:00:05]} 37. Qe5+ {[%emt 0:01:50]} Be6 {[%emt 0:02:38]} 38. Bxh5 {[%emt 0:00:49]} Rac8 {[%emt 0:00:48]} 39. Qg5+ {[%emt 0:02:23]} Kd7 {[%emt 0:00:25]} 40. Qf6 {[%emt 0:03:48]} Bxa2 {[%emt 0:07:39]} 41. Bg4+ {[%emt 0:06:59]} Be6 {[%emt 0:01:09]} 42. Qxf7+ {[%emt 0:00:13]} Kd6 {[%emt 0:00:06]} 43. Qf4+ {[%emt 0:00:34]} Kd7 {[%emt 0:01:26]} 44. Qd4+ {[%emt 0:00:26]} Kc6 {[%emt 0:00:10]} 45. Bf3+ {[%emt 0:01:01]} Kc7 {[%emt 0:00:08]} 46. Qc5+ {[%emt 0:04:43]} Kd8 {[%emt 0:00:16]} 47. Qd6+ {[%emt 0:00:17]} Bd7 {[%emt 0:00:07]} 48. Qf6+ {[%emt 0:01:19]} Re7 {[%emt 0:00:16]} 49. Qb6+ {[%emt 0:00:44]} Rc7 {[%emt 0:00:22]} 50. Bd5 {[%emt 0:01:56]} Bc8 {[%emt 0:03:29]} 51. e4 {[%emt 0:01:27]} Kd7 {[%emt 0:00:19]} 52. g3 {[%emt 0:05:08]} Rc1+ {[%emt 0:01:24]} 53. Kg2 {[%emt 0:00:03]} Rh7 {[%emt 0:00:30]} 54. e5 {[%emt 0:02:32]} Ke8 {[%emt 0:01:39]} 1-0

[Event "Niedersachsen-ch A 2024"]
[Site "Verden Aller"]
[Date "2024.01.04"]
[Round "1.22"]
[White "Aden, Dagmar"]
[Black "Kiesel, Harald"]
[Result "1/2-1/2"]
[ECO "A47"]
[WhiteElo "1766"]
[BlackElo "1975"]
[Annotator "RC"]
[PlyCount "92"]
[EventDate "2024.01.01"]
[EventType "swiss"]
[EventCountry "GER"]
[SourceTitle "playchess.com"]
[Source "ChessBase"]
[SourceQuality "1"]
[TimeControl "40/5400+30:1800+30"]

1. Nf3 {[%emt 0:00:09]} d5 {[%emt 0:00:04]} 2. g3 {[%emt 0:00:19]} Nf6 {[%emt 0:00:08]} 3. Bg2 {[%emt 0:00:19]} e6 {[%emt 0:02:16]} 4. d4 {[%emt 0:01:41]} Be7 {[%emt 0:00:08]} 5. O-O {[%emt 0:01:45]} O-O {[%emt 0:00:08]} 6. Nbd2 {[%emt 0:01:21]} c5 {[%emt 0:04:48]} 7. c3 {[%emt 0:01:53]} b6 {[%emt 0:05:56]} 8. Ne5 {[%emt 0:04:01]} Bb7 {[%emt 0:03:04]} 9. Ndf3 {[%emt 0:02:39]} Nbd7 {[%emt 0:08:15]} 10. Bg5 {[%emt 0:04:00]} Rc8 {[%emt 0:05:28]} 11. Nxd7 {[%emt 0:02:07]} Nxd7 {[%emt 0:00:18]} 12. Bxe7 {[%emt 0:00:34]} Qxe7 {[%emt 0:00:05]} 13. a4 {[%emt 0:02:08]} a6 {[%emt 0:08:12]} 14. e3 {[%emt 0:03:05]} Rfd8 {[%emt 0:09:18]} 15. Qe2 {[%emt 0:01:45]} h6 {[%emt 0:03:11]} 16. Rfd1 {[%emt 0:03:16]} Qf6 {[%emt 0:02:42]} 17. Ne1 {[%emt 0:02:34]} Rc7 {[%emt 0:06:29]} 18. e4 {[%emt 0:02:32]} dxe4 {[%emt 0:10:28]} 19. Bxe4 {[%emt 0:00:18]} Bxe4 {[%emt 0:02:03]} 20. Qxe4 {[%emt 0:00:09]} cxd4 {[%emt 0:00:56]} 21. Qxd4 {[%emt 0:01:54]} Rdc8 {[%emt 0:01:47]} 22. Qxf6 {[%emt 0:05:01]} Nxf6 {[%emt 0:00:08]} 23. Nf3 {[%emt 0:04:04]} Kf8 {[%emt 0:02:30]} 24. Ne5 {[%emt 0:03:41]} Ke7 {[%emt 0:04:14]} 25. Rd4 {[%emt 0:01:14]} Nd5 {[%emt 0:06:52]} 26. Re1 {[%emt 0:05:20]} f6 {[%emt 0:02:35]} 27. Nd3 {[%emt 0:04:08]} Kf7 {[%emt 0:00:29]} 28. Nb4 {[%emt 0:07:08]} Nxb4 {[%emt 0:00:12]} 29. Rxb4 {[%emt 0:00:14]} Rc6 {[%emt 0:01:12]} 30. Rd1 {[%emt 0:00:51]} Ke7 {[%emt 0:00:51]} 31. Rbd4 {[%emt 0:03:19]} R8c7 {[%emt 0:01:36]} 32. Kg2 {[%emt 0:04:23]} e5 {[%emt 0:00:46]} 33. Rd5 {[%emt 0:01:57]} Ke6 {[%emt 0:00:43]} 34. Kf3 {[%emt 0:01:56]} Rb7 {[%emt 0:00:27]} 35. R1d2 {[%emt 0:06:21]} h5 {[%emt 0:03:50]} 36. h4 {[%emt 0:00:37]} g6 {[%emt 0:00:16]} 37. Ke3 {[%emt 0:03:26]} a5 {[%emt 0:01:37]} 38. f4 {[%emt 0:03:10]} exf4+ {[%emt 0:02:24]} 39. Kxf4 {[%emt 0:00:12]} Rc4+ {[%emt 0:00:32]} 40. R5d4 {[%emt 0:00:45]} Rxd4+ {[%emt 0:01:19]} 41. Rxd4 {[%emt 0:30:08]} b5 {[%emt 0:02:13]} 42. axb5 {[%emt 0:00:00]} Rxb5 {[%emt 0:00:05]} 43. Rd2 {[%emt 0:00:00]} Rc5 {[%emt 0:07:15]} 44. Rd4 {[%emt 0:00:00]} Rb5 {[%emt 0:01:12]} 45. Rd2 {[%emt 0:00:00]} Rc5 {[%emt 0:00:12]} 46. Rd4 {[%emt 0:00:00]} Rb5 {[%emt 0:24:16]} 1/2-1/2

[Event "Niedersachsen-ch A 2024"]
[Site "Verden Aller"]
[Date "2024.01.04"]
[Round "1.23"]
[White "Kieselbach, Marvin"]
[Black "Trunz, Tamila"]
[Result "1-0"]
[ECO "B22"]
[WhiteElo "1926"]
[BlackElo "1766"]
[Annotator "RC"]
[PlyCount "85"]
[EventDate "2024.01.01"]
[EventType "swiss"]
[EventCountry "GER"]
[SourceTitle "playchess.com"]
[Source "ChessBase"]
[SourceQuality "1"]
[TimeControl "40/5400+30:1800+30"]

1. e4 {[%emt 0:00:20]} c5 {[%emt 0:00:04]} 2. c3 {[%emt 0:00:05]} e6 {[%emt 0:00:04]} 3. d4 {[%emt 0:00:11]} d5 {[%emt 0:00:04]} 4. exd5 {[%emt 0:00:17]} exd5 {[%emt 0:00:05]} 5. Nf3 {[%emt 0:00:26]} Nc6 {[%emt 0:01:55]} 6. Bb5 {[%emt 0:04:02]} Bg4 {[%emt 0:08:57]} 7. dxc5 {[%emt 0:07:38]} Bxc5 {[%emt 0:00:22]} 8. O-O {[%emt 0:00:19]} Nf6 {[%emt 0:12:25]} 9. Nbd2 {[%emt 0:06:24]} O-O {[%emt 0:01:33]} 10. h3 {[%emt 0:02:41]} Bh5 {[%emt 0:01:32]} 11. Nb3 {[%emt 0:00:46]} Be7 {[%emt 0:03:21]} 12. Be3 {[%emt 0:09:55]} Ne4 {[%emt 0:02:10]} 13. Be2 {[%emt 0:03:25]} f5 {[%emt 0:07:55]} 14. Nfd4 {[%emt 0:04:43]} Bxe2 {[%emt 0:01:24]} 15. Nxe2 {[%emt 0:03:53]} g5 {[%emt 0:06:00]} 16. f3 {[%emt 0:01:02]} f4 {[%emt 0:03:21]} 17. fxe4 {[%emt 0:03:00]} fxe3 {[%emt 0:00:46]} 18. Rxf8+ {[%emt 0:04:55]} Bxf8 {[%emt 0:04:25]} 19. exd5 {[%emt 0:07:37]} Ne5 {[%emt 0:07:24]} 20. Qd4 {[%emt 0:00:14]} Bg7 {[%emt 0:00:46]} 21. Qe4 {[%emt 0:00:36]} Qb6 {[%emt 0:08:45]} 22. Nbd4 {[%emt 0:13:08]} Rf8 {[%emt 0:10:18]} 23. b3 {[%emt 0:05:19]} g4 {[%emt 0:02:22]} 24. Ne6 {[%emt 0:06:26]} Rf2 {[%emt 0:06:08]} 25. N2d4 {[%emt 0:01:49]} gxh3 {[%emt 0:02:13]} 26. gxh3 {[%emt 0:02:30]} Qd6 {[%emt 0:00:37]} 27. Nf4 {[%emt 0:04:51]} Qf6 {[%emt 0:01:20]} 28. Rf1 {[%emt 0:03:39]} Qh4 {[%emt 0:02:18]} 29. Rxf2 {[%emt 0:01:39]} Qxf2+ {[%emt 0:00:42]} 30. Kh1 {[%emt 0:00:03]} Qe1+ {[%emt 0:01:39]} 31. Kh2 {[%emt 0:00:18]} Qf2+ {[%emt 0:01:37]} 32. Ng2 {[%emt 0:00:54]} Ng6 {[%emt 0:01:36]} 33. Qe8+ {[%emt 0:00:41]} Bf8 {[%emt 0:00:54]} 34. Qe6+ {[%emt 0:01:32]} Kh8 {[%emt 0:00:55]} 35. d6 {[%emt 0:01:34]} Nh4 {[%emt 0:01:08]} 36. Qe5+ {[%emt 0:00:42]} Bg7 {[%emt 0:00:40]} 37. Qe8+ {[%emt 0:00:06]} Bf8 {[%emt 0:00:06]} 38. Qe5+ {[%emt 0:00:06]} Bg7 {[%emt 0:00:05]} 39. Qg3 {[%emt 0:01:14]} Nxg2 {[%emt 0:01:13]} 40. Qxf2 {[%emt 0:00:19]} exf2 {[%emt 0:00:38]} 41. Kxg2 {[%emt 0:30:15]} Kg8 {[%emt 0:01:45]} 42. d7 {[%emt 0:00:00]} Bf6 {[%emt 0:00:13]} 43. Ne6 {[%emt 0:00:00]} 1-0

[Event "Niedersachsen-ch A 2024"]
[Site "Verden Aller"]
[Date "2024.01.04"]
[Round "1.24"]
[White "Nuerenberg, Marius"]
[Black "Reins, Henning"]
[Result "0-1"]
[ECO "B12"]
[WhiteElo "1764"]
[BlackElo "1950"]
[Annotator "RC"]
[PlyCount "54"]
[EventDate "2024.01.01"]
[EventType "swiss"]
[EventCountry "GER"]
[SourceTitle "playchess.com"]
[Source "ChessBase"]
[SourceQuality "1"]
[TimeControl "40/5400+30:1800+30"]

1. e4 {[%emt 0:00:03]} c6 {[%emt 0:00:42]} 2. d4 {[%emt 0:00:06]} d5 {[%emt 0:00:03]} 3. e5 {[%emt 0:00:03]} c5 {[%emt 0:00:32]} 4. dxc5 {[%emt 0:00:05]} e6 {[%emt 0:00:42]} 5. Be3 {[%emt 0:00:17]} Nh6 {[%emt 0:03:08]} 6. Nf3 {[%emt 0:15:08]} Nf5 {[%emt 0:01:50]} 7. Bd4 {[%emt 0:01:46]} Nxd4 {[%emt 0:00:54]} 8. Qxd4 {[%emt 0:00:35]} Qc7 {[%emt 0:10:38]} 9. b4 {[%emt 0:01:54]} a5 {[%emt 0:08:17]} 10. c3 {[%emt 0:25:59]} axb4 {[%emt 0:08:21]} 11. cxb4 {[%emt 0:01:03]} b6 {[%emt 0:03:13]} 12. cxb6 {[%emt 0:07:14]} Qc1+ {[%emt 0:01:47]} 13. Qd1 {[%emt 0:00:06]} Qb2 {[%emt 0:02:25]} 14. Nbd2 {[%emt 0:02:08]} Bxb4 {[%emt 0:00:40]} 15. Rc1 {[%emt 0:07:26]} Bd7 {[%emt 0:07:17]} 16. b7 {[%emt 0:12:46]} Rxa2 {[%emt 0:22:38]} 17. Rc8+ {[%emt 0:10:46]} Ke7 {[%emt 0:00:07]} 18. Rxh8 {[%emt 0:00:15]} Ra1 {[%emt 0:12:37]} 19. Be2 {[%emt 0:10:25]} Rxd1+ {[%emt 0:04:12]} 20. Bxd1 {[%emt 0:00:01]} Bxd2+ {[%emt 0:01:29]} 21. Nxd2 {[%emt 0:00:28]} Qxe5+ {[%emt 0:00:19]} 22. Be2 {[%emt 0:00:05]} Bb5 {[%emt 0:00:19]} 23. O-O {[%emt 0:00:20]} Bxe2 {[%emt 0:01:42]} 24. Re1 {[%emt 0:01:46]} Nc6 {[%emt 0:03:00]} 25. Rc8 {[%emt 0:00:03]} Kd7 {[%emt 0:02:21]} 26. Nf3 {[%emt 0:00:51]} Qb2 {[%emt 0:00:53]} 27. Rc1 {[%emt 0:01:31]} Qxc1+ {[%emt 0:03:54]} 0-1

[Event "Niedersachsen-ch A 2024"]
[Site "Verden Aller"]
[Date "2024.01.04"]
[Round "1.25"]
[White "Ehlert, Horst"]
[Black "Stein, Luis"]
[Result "1/2-1/2"]
[ECO "D13"]
[WhiteElo "1940"]
[BlackElo "1762"]
[Annotator "NA RC"]
[PlyCount "128"]
[EventDate "2024.01.01"]
[EventType "swiss"]
[EventCountry "GER"]
[SourceTitle "playchess.com"]
[Source "ChessBase"]
[SourceQuality "1"]
[TimeControl "40/5400+30:1800+30"]

1. c4 {[%emt 0:00:29]} c6 {[%emt 0:00:06]} 2. Nf3 {[%emt 0:02:30]} Nf6 {[%emt 0:00:08]} 3. d4 {[%emt 0:02:55]} d5 {[%emt 0:00:05]} 4. cxd5 {[%emt 0:01:03]} cxd5 {[%emt 0:00:06]} 5. Nc3 {[%emt 0:00:09]} Nc6 {[%emt 0:04:08]} 6. Bf4 {[%emt 0:01:16]} a6 {[%emt 0:01:16]} 7. Rc1 {[%emt 0:02:14]} Bd7 {[%emt 0:05:54]} 8. e3 {[%emt 0:04:20]} Qb6 {[%emt 0:07:24]} 9. Bd3 {[%emt 0:08:45]} e6 {[%emt 0:04:44]} 10. Qe2 {[%emt 0:04:17]} Nh5 {[%emt 0:06:58]} 11. Bg5 {[%emt 0:15:55]} h6 {[%emt 0:06:47]} 12. Bh4 {[%emt 0:00:17]} g5 {[%emt 0:03:45]} 13. Bg3 {[%emt 0:00:07]} Nxg3 {[%emt 0:00:03]} 14. hxg3 {[%emt 0:03:01]} Be7 {[%emt 0:00:38]} 15. O-O {[%emt 0:15:12]} Bd6 {[%emt 0:15:18]} 16. Na4 {[%emt 0:09:19]} Qc7 {[%emt 0:04:53]} 17. Nc5 {[%emt 0:02:57]} g4 {[%emt 0:05:33]} 18. Ne5 {[%emt 0:02:31]} Bxe5 {[%emt 0:01:27]} 19. dxe5 {[%emt 0:01:49]} h5 {[%emt 0:00:47]} 20. f4 {[%emt 0:04:00]} gxf3 {[%emt 0:17:51]} 21. Qxf3 {[%emt 0:01:30]} O-O-O {[%emt 0:00:48]} 22. Qf6 {[%emt 0:05:38]} Rhf8 {[%emt 0:08:00]} 23. a3 {[%emt 0:00:41]} Qb6 {[%emt 0:01:37]} 24. b4 {[%emt 0:01:06]} Kb8 {[%emt 0:01:23]} 25. Rc2 {[%emt 0:02:02]} Na7 {[%emt 0:00:47]} 26. Qe7 {[%emt 0:00:50]} Bc6 {[%emt 0:01:20]} 27. Rxf7 {[%emt 0:01:07]} Rfe8 {[%emt 0:00:21]} 28. Qg5 {[%emt 0:00:53]} Rg8 {[%emt 0:01:40]} 29. Rg7 {[%emt 0:00:13]} Rxg7 {[%emt 0:00:41]} 30. Qxg7 {[%emt 0:08:24]} Be8 {[%emt 0:00:28]} 31. Qe7 {[%emt 0:00:00]} Nb5 {[%emt 0:00:32]} 32. Bxb5 {[%emt 0:00:00]} Bxb5 {[%emt 0:00:01]} 33. Qxe6 {[%emt 0:00:00]} Qxe6 {[%emt 0:00:00]} 34. Nxe6 {[%emt 0:00:00]} Re8 {[%emt 0:00:02]} 35. Nf4 {[%emt 0:00:00]} Rxe5 {[%emt 0:00:01]} 36. Kf2 {[%emt 0:00:00]} Bc6 {[%emt 0:00:49]} 37. Rc1 {[%emt 0:00:00]} Ka7 {[%emt 0:00:55]} 38. Rh1 {[%emt 0:00:17]} Be8 {[%emt 0:00:02]} 39. Rh4 {[%emt 0:00:59]} Kb6 {[%emt 0:01:03]} 40. Ne2 {[%emt 0:02:47]} Bd7 {[%emt 0:01:11]} 41. Rf4 {[%emt 0:30:50]} Rg5 {[%emt 0:12:14]} 42. Nd4 {[%emt 0:00:00]} Rg6 {[%emt 0:07:51]} 43. Rf8 {[%emt 0:00:00]} Kc7 {[%emt 0:03:16]} 44. Rf7 {[%emt 0:00:00]} Kd6 {[%emt 0:03:44]} 45. Rh7 {[%emt 0:00:00]} Rg5 {[%emt 0:01:01]} 46. Rh6+ {[%emt 0:00:00]} Kc7 {[%emt 0:00:34]} 47. Rf6 {[%emt 0:00:00]} Rg7 $16 {[%emt 0:01:12]} 48. Ne2 {[%emt 0:00:00]} Bg4 {[%emt 0:03:37]} 49. Nd4 {[%emt 0:00:00]} Bd7 {[%emt 0:00:12]} 50. Nf3 {[%emt 0:00:00]} Bg4 {[%emt 0:00:17]} 51. Ne5 {[%emt 0:00:00]} Re7 {[%emt 0:00:24]} 52. Nxg4 {[%emt 0:00:00]} hxg4 {[%emt 0:00:01]} 53. Rf4 {[%emt 0:00:00]} Rg7 {[%emt 0:00:01]} 54. Rf6 {[%emt 0:00:00]} Re7 {[%emt 0:00:33]} 55. Rf4 {[%emt 0:00:00]} Rg7 {[%emt 0:00:01]} 56. Rd4 {[%emt 0:00:00]} Kc6 {[%emt 0:00:37]} 57. Ke2 {[%emt 0:00:00]} Rg5 {[%emt 0:00:32]} 58. Kd3 {[%emt 0:00:00]} Kb5 {[%emt 0:00:30]} 59. e4 {[%emt 0:00:07]} dxe4+ {[%emt 0:00:01]} 60. Kxe4 {[%emt 0:00:15]} Rg7 {[%emt 0:00:02]} 61. Kf5 {[%emt 0:03:42]} Ka4 {[%emt 0:00:26]} 62. Rd3 {[%emt 0:00:25]} b5 {[%emt 0:03:12]} 63. Kf4 {[%emt 0:01:00]} Rg6 {[%emt 0:00:31]} 64. Kf5 {[%emt 0:00:46]} Rg7 {[%emt 0:00:03]} 1/2-1/2

[Event "Niedersachsen-ch A 2024"]
[Site "Verden Aller"]
[Date "2024.01.04"]
[Round "1.26"]
[White "Gehrke, Mathias"]
[Black "Gottschalk, Siegfried"]
[Result "1/2-1/2"]
[ECO "A25"]
[WhiteElo "1761"]
[BlackElo "1939"]
[Annotator "RC"]
[PlyCount "70"]
[EventDate "2024.01.01"]
[EventType "swiss"]
[EventCountry "GER"]
[SourceTitle "playchess.com"]
[Source "ChessBase"]
[SourceQuality "1"]
[TimeControl "40/5400+30:1800+30"]

1. c4 {[%emt 0:00:05]} e5 {[%emt 0:00:27]} 2. Nc3 {[%emt 0:00:24]} Nc6 {[%emt 0:00:12]} 3. g3 {[%emt 0:03:05]} g6 {[%emt 0:01:01]} 4. Bg2 {[%emt 0:00:12]} Bg7 {[%emt 0:00:01]} 5. a3 {[%emt 0:04:32]} Nf6 {[%emt 0:12:39]} 6. d3 {[%emt 0:04:33]} O-O {[%emt 0:01:21]} 7. b4 {[%emt 0:10:41]} Re8 {[%emt 0:08:40]} 8. Rb1 {[%emt 0:00:49]} Ne7 {[%emt 0:03:32]} 9. Bg5 {[%emt 0:07:19]} h6 {[%emt 0:03:19]} 10. Bd2 {[%emt 0:00:12]} d5 {[%emt 0:04:46]} 11. cxd5 {[%emt 0:06:27]} Nexd5 {[%emt 0:01:09]} 12. Nxd5 {[%emt 0:13:19]} Nxd5 {[%emt 0:03:24]} 13. Qc1 {[%emt 0:02:37]} Kh7 {[%emt 0:03:21]} 14. h4 {[%emt 0:01:52]} Be6 {[%emt 0:09:16]} 15. h5 {[%emt 0:00:31]} g5 {[%emt 0:44:52]} 16. Qc2 {[%emt 0:12:13]} Kg8 17. Nf3 {[%emt 0:30:09]} Rc8 {[%emt 0:01:00]} 18. Nh2 {[%emt 0:00:00]} c6 19. Nf1 {[%emt 0:01:00]} Qe7 {[%emt 0:00:00]} 20. Ne3 {[%emt 0:00:30]} f5 {[%emt 0:00:00]} 21. Qc5 {[%emt 0:00:00]} b6 {[%emt 0:00:00]} 22. Qxe7 {[%emt 0:00:00]} Rxe7 {[%emt 0:00:00]} 23. Nxd5 {[%emt 0:00:00]} cxd5 {[%emt 0:00:00]} 24. b5 {[%emt 0:00:00]} Rec7 {[%emt 0:00:00]} 25. e4 {[%emt 0:00:00]} fxe4 {[%emt 0:00:00]} 26. dxe4 {[%emt 0:00:00]} d4 {[%emt 0:00:00]} 27. Bh3 {[%emt 0:00:00]} Bxh3 {[%emt 0:00:00]} 28. Rxh3 {[%emt 0:00:00]} Bf8 {[%emt 0:00:28]} 29. g4 {[%emt 0:00:00]} Bc5 {[%emt 0:00:56]} 30. Rbb3 {[%emt 0:00:00]} Rf7 {[%emt 0:00:15]} 31. Rhd3 {[%emt 0:00:00]} Rcf8 {[%emt 0:00:24]} 32. f3 {[%emt 0:00:00]} Rc7 {[%emt 0:00:28]} 33. a4 {[%emt 0:00:00]} Rb8 {[%emt 0:01:31]} 34. Ke2 {[%emt 0:00:00]} Kf7 {[%emt 0:01:24]} 35. Rb1 {[%emt 0:00:00]} Rcb7 {[%emt 0:00:57]} 1/2-1/2

[Event "Niedersachsen-ch A 2024"]
[Site "Verden Aller"]
[Date "2024.01.04"]
[Round "1.27"]
[White "Bisa, Gani"]
[Black "Carsten, Juergen"]
[Result "0-1"]
[ECO "D31"]
[WhiteElo "1931"]
[BlackElo "1749"]
[Annotator "RC"]
[PlyCount "146"]
[EventDate "2024.01.01"]
[EventType "swiss"]
[EventCountry "GER"]
[SourceTitle "playchess.com"]
[Source "ChessBase"]
[SourceQuality "1"]
[TimeControl "40/5400+30:1800+30"]

1. d4 {[%emt 0:00:02]} d5 {[%emt 0:01:12]} 2. c4 {[%emt 0:00:13]} e6 {[%emt 0:00:38]} 3. Nc3 {[%emt 0:00:23]} c6 {[%emt 0:01:58]} 4. Nf3 {[%emt 0:01:54]} Bd6 {[%emt 0:02:52]} 5. a4 {[%emt 0:02:22]} Nd7 {[%emt 0:02:20]} 6. g3 {[%emt 0:02:10]} Ne7 {[%emt 0:04:56]} 7. Bg2 {[%emt 0:02:13]} O-O {[%emt 0:08:17]} 8. O-O {[%emt 0:00:14]} Ng6 {[%emt 0:02:08]} 9. Re1 {[%emt 0:05:38]} Bb4 {[%emt 0:06:54]} 10. Nd2 {[%emt 0:08:00]} Nf6 {[%emt 0:08:00]} 11. e4 {[%emt 0:02:41]} dxe4 {[%emt 0:01:55]} 12. Ndxe4 {[%emt 0:00:17]} Nxe4 {[%emt 0:02:45]} 13. Bxe4 {[%emt 0:01:08]} f5 {[%emt 0:02:44]} 14. Bc2 {[%emt 0:03:45]} Qf6 {[%emt 0:02:41]} 15. Rf1 {[%emt 0:03:31]} f4 {[%emt 0:02:39]} 16. Bxg6 {[%emt 0:00:34]} Qxg6 {[%emt 0:00:20]} 17. Ne2 {[%emt 0:02:28]} Bd6 {[%emt 0:01:21]} 18. f3 {[%emt 0:01:46]} fxg3 {[%emt 0:02:13]} 19. f4 {[%emt 0:00:51]} gxh2+ {[%emt 0:01:44]} 20. Kxh2 {[%emt 0:01:22]} Qh5+ {[%emt 0:03:08]} 21. Kg2 {[%emt 0:00:40]} Qg4+ {[%emt 0:08:19]} 22. Kh2 {[%emt 0:06:15]} Rf6 {[%emt 0:01:08]} 23. Ng3 {[%emt 0:01:14]} Qxd1 {[%emt 0:03:21]} 24. Rxd1 {[%emt 0:00:15]} Bxf4 {[%emt 0:00:13]} 25. Kg2 {[%emt 0:01:37]} Bd7 {[%emt 0:02:08]} 26. Nh5 {[%emt 0:01:47]} Rg6+ {[%emt 0:00:08]} 27. Kf3 {[%emt 0:00:34]} Bxc1 {[%emt 0:00:22]} 28. Raxc1 {[%emt 0:00:16]} e5 {[%emt 0:00:57]} 29. Ke4 {[%emt 0:01:34]} exd4 {[%emt 0:02:56]} 30. Rxd4 {[%emt 0:03:12]} Re8+ {[%emt 0:01:29]} 31. Kd3 {[%emt 0:00:14]} Bf5+ {[%emt 0:01:31]} 32. Kc3 {[%emt 0:00:52]} Rg4 {[%emt 0:04:40]} 33. Rd2 {[%emt 0:05:06]} Bg6 {[%emt 0:04:21]} 34. Rh1 {[%emt 0:00:48]} c5 {[%emt 0:01:02]} 35. b3 {[%emt 0:01:20]} Re3+ {[%emt 0:01:18]} 36. Kb2 {[%emt 0:00:17]} Rd3 {[%emt 0:02:15]} 37. Re2 {[%emt 0:01:02]} Rgd4 {[%emt 0:02:53]} 38. Re7 {[%emt 0:01:16]} Rd7 {[%emt 0:02:31]} 39. Re5 {[%emt 0:00:36]} b6 {[%emt 0:00:45]} 40. Nf4 {[%emt 0:00:39]} Rd2+ {[%emt 0:01:29]} 41. Ka3 {[%emt 0:30:22]} Bf7 {[%emt 0:31:06]} 42. Rf1 {[%emt 0:00:28]} Rd8 {[%emt 0:03:51]} 43. a5 {[%emt 0:01:52]} Re8 {[%emt 0:00:00]} 44. Rf5 {[%emt 0:00:00]} Rd7 {[%emt 0:00:00]} 45. Rf3 {[%emt 0:00:00]} h6 {[%emt 0:00:00]} 46. Rg3 {[%emt 0:00:00]} Be6 {[%emt 0:00:00]} 47. Re5 {[%emt 0:00:00]} Bf7 {[%emt 0:00:00]} 48. Rf5 {[%emt 0:00:00]} Rf8 {[%emt 0:00:00]} 49. Nd3 {[%emt 0:00:00]} Rd6 {[%emt 0:00:00]} 50. Rgf3 {[%emt 0:00:00]} Rdd8 {[%emt 0:00:00]} 51. Rg3 {[%emt 0:00:00]} Be6 {[%emt 0:00:00]} 52. Re5 {[%emt 0:00:00]} Bf5 {[%emt 0:00:00]} 53. Nf4 {[%emt 0:00:00]} g5 {[%emt 0:00:00]} 54. Nd5 {[%emt 0:00:00]} Kg7 {[%emt 0:00:00]} 55. Rf3 {[%emt 0:00:00]} Bg6 {[%emt 0:00:00]} 56. Rfe3 {[%emt 0:00:00]} bxa5 {[%emt 0:00:16]} 57. Ne7 {[%emt 0:00:00]} Rd3 {[%emt 0:03:18]} 58. Re1 {[%emt 0:00:00]} Rf7 {[%emt 0:01:14]} 59. Rxc5 {[%emt 0:00:00]} Rff3 {[%emt 0:01:47]} 60. Rb5 {[%emt 0:00:00]} Bf7 {[%emt 0:00:33]} 61. Ka4 {[%emt 0:00:00]} Bxc4 {[%emt 0:00:21]} 62. Rb7 {[%emt 0:00:00]} Rxb3 {[%emt 0:01:03]} 63. Rxb3 {[%emt 0:00:00]} Bxb3+ {[%emt 0:00:44]} 64. Kxa5 {[%emt 0:00:00]} Bc4 {[%emt 0:01:29]} 65. Nc6 {[%emt 0:00:00]} Rf5+ {[%emt 0:01:05]} 66. Kb4 {[%emt 0:00:00]} Bf7 {[%emt 0:00:37]} 67. Nxa7 {[%emt 0:00:00]} g4 {[%emt 0:00:20]} 68. Nc8 {[%emt 0:00:00]} g3 {[%emt 0:00:17]} 69. Rg1 {[%emt 0:00:00]} Rg5 {[%emt 0:00:11]} 70. Nd6 {[%emt 0:00:00]} Bg6 {[%emt 0:00:10]} 71. Kc3 {[%emt 0:00:16]} h5 {[%emt 0:00:09]} 72. Nc4 {[%emt 0:00:32]} h4 {[%emt 0:00:15]} 73. Ne3 {[%emt 0:00:07]} h3 {[%emt 0:03:43]} 0-1